[Event "4th EFE Metz Festival-WIM"]
[Site "Metz"]
[Date "2018.07.24"]
[Round "2"]
[White "Schweitzer, Victoria"]
[Black "Terbe, Zsuzsanna"]
[Result "0-1"]
[ECO "B31"]
[WhiteElo "2097"]
[BlackElo "2178"]
[Annotator "NA"]
[PlyCount "110"]
[EventDate "2018.07.22"]
[EventType "tourn"]
[EventCountry "FRA"]
[SourceTitle "playchess.com"]
[Source "ChessBase"]
[SourceQuality "1"]
[TimeControl "5400+30"]

1. e4 {[%emt 0:00:00]} c5 {[%emt 0:00:13]} 2. Nf3 {[%emt 0:00:00]} Nc6 {[%emt 0:00:11]} 3. Bb5 {[%emt 0:00:00]} g6 {[%emt 0:00:11]} 4. Bxc6 {[%emt 0:00:03]} bxc6 {[%emt 0:00:12]} 5. d3 {[%emt 0:00:28]} Bg7 {[%emt 0:00:27]} 6. O-O {[%emt 0:00:44]} e5 {[%emt 0:00:17]} 7. Be3 {[%emt 0:01:31]} d6 {[%emt 0:00:15]} 8. Nbd2 {[%emt 0:00:30]} Ne7 {[%emt 0:01:05]} 9. Nc4 {[%emt 0:04:08]} O-O {[%emt 0:03:50]} 10. h3 {[%emt 0:01:09]} f5 {[%emt 0:00:39]} 11. exf5 {[%emt 0:06:41]} gxf5 {[%emt 0:01:23]} 12. Bg5 {[%emt 0:01:00]} h6 {[%emt 0:05:14]} 13. Bh4 {[%emt 0:01:00]} Be6 {[%emt 0:01:46]} 14. c3 {[%emt 0:02:06]} Qd7 {[%emt 0:13:38]} 15. Bxe7 {[%emt 0:00:27]} Qxe7 {[%emt 0:00:05]} 16. Qe2 {[%emt 0:00:17]} Rad8 {[%emt 0:16:49]} 17. Rae1 {[%emt 0:00:45]} Qf7 {[%emt 0:02:27]} 18. Nfd2 {[%emt 0:00:40]} f4 {[%emt 0:01:09]} 19. Nf3 {[%emt 0:05:01]} Rfe8 {[%emt 0:04:26]} 20. Ncd2 {[%emt 0:12:35]} Kh8 {[%emt 0:03:31]} 21. c4 {[%emt 0:00:20]} Rg8 {[%emt 0:02:01]} 22. Kh2 {[%emt 0:02:50]} Bf6 {[%emt 0:03:02]} 23. Ng1 {[%emt 0:11:06]} Qg6 {[%emt 0:05:19]} 24. Qf3 {[%emt 0:00:14]} Bf5 {[%emt 0:02:00]} 25. Ne4 {[%emt 0:02:12]} Be7 {[%emt 0:02:07]} 26. g4 {[%emt 0:12:07]} fxg3+ {[%emt 0:03:22]} 27. fxg3 {[%emt 0:01:04]} Rdf8 {[%emt 0:00:27]} 28. Qe3 {[%emt 0:02:23]} d5 {[%emt 0:06:44]} 29. Nf2 {[%emt 0:01:46]} Bd6 {[%emt 0:00:42]} 30. Ng4 {[%emt 0:14:57] [#]} Bxg4 $17 {[%emt 0:09:26]} ({Don't do} 30... Bxd3 31. Nxe5 Bxe5 32. Qxe5+ Qg7 33. Qxg7+ Kxg7 34. Re7+ Kg6 35. Re6+ Kh7 36. Rxf8 $17) (30... d4 $1 $19 {[%cal Rd4e3] is more deadly.} 31. Qxh6+ Qxh6 32. Nxh6 Bxd3 33. Nf7+ Kg7) 31. hxg4 {[%emt 0:00:16]} Kh7 {[%emt 0:00:10]} (31... Kg7 $17 32. Qe2 e4 33. dxe4 Rxf1 34. Qxf1 dxe4) 32. Kg2 {[%emt 0:03:47]} Qxg4 {[%emt 0:02:12]} 33. Ne2 {[%emt 0:00:48]} e4 {[%emt 0:03:17]} 34. dxe4 {[%emt 0:00:28]} dxe4 {[%emt 0:00:37]} 35. Rd1 {[%emt 0:03:20]} Be5 {[%emt 0:03:00]} 36. b3 {[%emt 0:02:05]} h5 {[%emt 0:01:32]} 37. Rd7+ {[%emt 0:03:41]} Qxd7 {[%emt 0:00:22]} 38. Qxe4+ {[%emt 0:00:01]} Kh6 {[%emt 0:01:56]} 39. Rxf8 {[%emt 0:00:07]} Rxf8 {[%emt 0:00:05]} 40. Qxe5 {[%emt 0:00:34]} Qf5 {[%emt 0:00:46]} 41. Qe3+ {[%emt 0:00:18]} Qg5 {[%emt 0:01:02]} 42. Qe4 {[%emt 0:02:10]} Rf6 {[%emt 0:01:16]} 43. Qe8 {[%emt 0:00:08]} Kg7 {[%emt 0:01:20]} 44. Qd7+ {[%emt 0:00:16]} Rf7 {[%emt 0:00:11]} 45. Qxc6 {[%emt 0:01:10]} h4 {[%emt 0:00:47]} 46. Qd5 {[%emt 0:01:25]} Qe3 {[%emt 0:01:01]} 47. Ng1 {[%emt 0:01:20]} Qxg3+ {[%emt 0:00:15]} 48. Kh1 {[%emt 0:00:01]} h3 {[%emt 0:00:16]} 49. Qd2 {[%emt 0:00:49]} h2 {[%emt 0:01:03]} 50. Qxh2 {[%emt 0:00:36]} Qxh2+ {[%emt 0:00:02]} 51. Kxh2 {[%emt 0:00:01]} Rf2+ {[%emt 0:00:05]} 52. Kg3 {[%emt 0:00:03]} Rxa2 {[%emt 0:00:04]} 53. Kf4 {[%emt 0:02:06]} Rb2 {[%emt 0:01:01]} 54. Nf3 {[%emt 0:00:01]} Rxb3 {[%emt 0:00:10]} 55. Ke4 {[%emt 0:00:11]} Rxf3 {[%emt 0:00:47]} 0-1

[Event "4th EFE Metz Festival-WIM"]
[Site "Metz"]
[Date "2018.07.24"]
[Round "2"]
[White "Afraoui, Anaelle"]
[Black "Broly, Mathilde"]
[Result "0-1"]
[ECO "B06"]
[WhiteElo "2056"]
[BlackElo "2149"]
[Annotator "NA"]
[PlyCount "53"]
[EventDate "2018.07.22"]
[EventType "tourn"]
[EventCountry "FRA"]
[SourceTitle "playchess.com"]
[Source "ChessBase"]
[SourceQuality "1"]
[TimeControl "5400+30"]

1. e4 {[%emt 0:00:00]} g6 {[%emt 0:00:15]} 2. d4 {[%emt 0:00:00]} Bg7 {[%emt 0:00:07]} 3. Be3 {[%emt 0:00:51]} d6 {[%emt 0:00:22]} 4. Qd2 {[%emt 0:00:58]} a6 {[%emt 0:02:00] B06: Moderne Verteidigung} (4... c5 5. c3 Nf6 6. f3 cxd4 7. cxd4 Nc6 8. Bd3 O-O 9. Ne2 a6 10. O-O b5 11. Nbc3 Bb7 12. Rac1 Rc8 {1-0 (58) Shankland,S (2674)-Stefanova,A (2512) Caleta 2017}) 5. Bd3 {[%emt 0:03:18]} Nd7 {[%emt 0:04:44]} 6. Nc3 {[%emt 0:01:52]} c5 {[%emt 0:04:35]} 7. Nf3 {[%emt 0:03:01]} b5 {[%emt 0:06:35]} 8. Rd1 {[%emt 0:05:31]} cxd4 $146 {[%emt 0:05:55]} ({Vorgänger:} 8... Bb7 9. dxc5 Nxc5 10. O-O Nxd3 11. cxd3 Nf6 12. Bh6 O-O 13. Bxg7 Kxg7 14. Ne2 Qb6 {½-½ (33) Siegel,W (1972)-Mehlhorn,U (2281) GER email 2009}) 9. Bxd4 {[%emt 0:01:05]} Bxd4 {[%emt 0:09:10]} 10. Nxd4 {[%emt 0:00:12]} Bb7 {[%emt 0:00:06]} 11. a4 {[%emt 0:04:26]} bxa4 {[%emt 0:04:06]} 12. Nxa4 {[%emt 0:02:49]} Ngf6 {[%emt 0:01:46]} 13. Qh6 {[%emt 0:11:42]} Qa5+ {[%emt 0:06:03]} 14. Nc3 {[%emt 0:00:29]} Ng4 {[%emt 0:16:11]} 15. Qh4 {[%emt 0:04:42]} Ndf6 {[%emt 0:02:50]} 16. O-O {[%emt 0:01:24]} g5 {[%emt 0:08:27]} 17. Qg3 {[%emt 0:11:35]} h5 {[%emt 0:01:47]} 18. Nf5 {[%emt 0:04:53]} h4 {[%emt 0:03:12]} 19. Qf3 {[%emt 0:00:39]} Qe5 {[%emt 0:00:38]} 20. Rfe1 {[%emt 0:07:47]} Qxh2+ {[%emt 0:12:10]} 21. Kf1 {[%emt 0:00:09]} Ne5 $19 {[%emt 0:00:56]} 22. Nxd6+ {[%emt 0:07:16]} Kf8 {[%emt 0:00:14]} 23. Qf5 {[%emt 0:01:06]} Bc6 {[%emt 0:01:42]} 24. Nc4 {[%emt 0:10:49]} Ng6 {[%emt 0:03:41]} 25. Qxg5 {[%emt 0:06:39]} Nf4 {[%emt 0:00:35]} 26. f3 {[%emt 0:04:01]} Rh5 {[%emt 0:00:10]} 27. Ra1 0-1

[Event "4th EFE Metz Festival-WIM"]
[Site "Metz"]
[Date "2018.07.24"]
[Round "3"]
[White "Zozulia, Anna"]
[Black "Muetsch, Annmarie"]
[Result "1/2-1/2"]
[ECO "C48"]
[WhiteElo "2300"]
[BlackElo "2146"]
[Annotator "NA"]
[PlyCount "122"]
[EventDate "2018.07.22"]
[EventType "tourn"]
[EventCountry "FRA"]
[SourceTitle "playchess.com"]
[Source "ChessBase"]
[SourceQuality "1"]
[TimeControl "5400+30"]

1. e4 {[%emt 0:00:00]} e5 {[%emt 0:00:14]} 2. Nf3 {[%emt 0:00:14]} Nc6 {[%emt 0:00:07]} 3. Nc3 {[%emt 0:00:38]} Nf6 {[%emt 0:00:25]} 4. Bb5 {[%emt 0:00:05]} Nd4 {[%emt 0:00:38]} 5. Bc4 {[%emt 0:04:32]} Bc5 {[%emt 0:00:41]} 6. d3 {[%emt 0:04:02]} d6 {[%emt 0:01:06]} 7. h3 {[%emt 0:04:55]} c6 {[%emt 0:01:44]} 8. Nxd4 {[%emt 0:07:09]} exd4 {[%emt 0:02:21]} 9. Ne2 {[%emt 0:00:06]} d5 {[%emt 0:03:51]} 10. exd5 {[%emt 0:00:51]} Nxd5 {[%emt 0:00:08]} 11. O-O {[%emt 0:00:48]} O-O {[%emt 0:00:56]} 12. Ng3 {[%emt 0:14:50]} Be7 {[%emt 0:11:21]} 13. Qf3 {[%emt 0:07:44]} Be6 {[%emt 0:03:14]} 14. Nh5 {[%emt 0:05:10]} Kh8 {[%emt 0:05:16]} 15. Qg3 {[%emt 0:08:30]} Bf6 {[%emt 0:02:38]} 16. Bd2 {[%emt 0:07:11]} Rg8 {[%emt 0:04:20]} 17. Rfe1 {[%emt 0:02:21]} c5 {[%emt 0:06:39]} 18. Re2 {[%emt 0:07:03]} a6 {[%emt 0:03:45]} 19. Nf4 {[%emt 0:14:17]} Nxf4 {[%emt 0:01:23]} 20. Bxf4 {[%emt 0:00:03]} Bxc4 {[%emt 0:07:33]} 21. dxc4 {[%emt 0:00:04]} Qb6 {[%emt 0:00:27]} 22. Qb3 {[%emt 0:02:00]} Qxb3 {[%emt 0:02:54]} 23. axb3 {[%emt 0:00:05]} Rge8 {[%emt 0:00:18]} 24. Rae1 {[%emt 0:02:27]} Rxe2 {[%emt 0:00:07]} 25. Rxe2 {[%emt 0:00:02]} h6 {[%emt 0:01:38]} 26. Bd6 {[%emt 0:03:09]} Rc8 {[%emt 0:02:25]} 27. Kf1 {[%emt 0:00:13]} Kh7 {[%emt 0:02:40]} 28. Ke1 {[%emt 0:01:06]} Rc6 {[%emt 0:02:10]} 29. Bf8 {[%emt 0:01:53]} b6 {[%emt 0:07:12]} 30. Kd2 {[%emt 0:00:21]} h5 {[%emt 0:00:49]} 31. Kd3 {[%emt 0:00:35]} Kg6 {[%emt 0:01:28]} 32. b4 {[%emt 0:00:38]} cxb4 {[%emt 0:03:03]} 33. Bxb4 {[%emt 0:00:04]} Kf5 {[%emt 0:02:13]} 34. Re4 {[%emt 0:02:59]} h4 {[%emt 0:01:01]} 35. Bd2 {[%emt 0:00:43]} g5 {[%emt 0:01:29]} 36. g4+ {[%emt 0:00:14]} hxg3 {[%emt 0:00:25]} 37. fxg3 {[%emt 0:00:03]} Rc8 {[%emt 0:01:13]} 38. h4 {[%emt 0:01:10]} gxh4 {[%emt 0:00:41]} 39. gxh4 {[%emt 0:00:04]} Rh8 {[%emt 0:04:44]} 40. Rf4+ {[%emt 0:00:54]} Ke6 {[%emt 0:00:11]} 41. Be1 {[%emt 0:00:11]} Rh5 {[%emt 0:03:17]} 42. Bf2 {[%emt 0:00:30]} b5 {[%emt 0:01:37]} 43. cxb5 {[%emt 0:00:52]} axb5 {[%emt 0:00:06]} 44. Bxd4 {[%emt 0:00:27]} Bxh4 {[%emt 0:00:31]} 45. c4 {[%emt 0:00:13]} bxc4+ {[%emt 0:01:10]} 46. Kxc4 {[%emt 0:00:05]} f5 {[%emt 0:00:32]} 47. b4 {[%emt 0:00:32]} Bf6 {[%emt 0:02:26]} 48. b5 {[%emt 0:00:56]} Bxd4 {[%emt 0:04:19]} 49. Rxd4 {[%emt 0:00:10]} Rh8 {[%emt 0:01:52]} 50. b6 {[%emt 0:00:16]} Ke5 {[%emt 0:00:34]} 51. b7 {[%emt 0:00:56]} f4 {[%emt 0:00:31]} 52. Rd7 {[%emt 0:00:49]} Ke4 {[%emt 0:01:41]} 53. Re7+ {[%emt 0:00:12]} Kf3 {[%emt 0:00:24]} 54. Rc7 {[%emt 0:00:54]} Rb8 {[%emt 0:00:17]} 55. Kd5 {[%emt 0:00:13]} Ke3 {[%emt 0:01:41]} 56. Re7+ {[%emt 0:00:29]} Kd3 {[%emt 0:00:44]} 57. Kc6 {[%emt 0:00:06]} f3 {[%emt 0:00:38]} 58. Kc7 {[%emt 0:00:30]} Rxb7+ {[%emt 0:00:06]} 59. Kxb7 {[%emt 0:00:04]} f2 {[%emt 0:00:06]} 60. Rf7 {[%emt 0:00:02]} Ke2 {[%emt 0:00:05]} 61. Rxf2+ {[%emt 0:00:03]} Kxf2 {[%emt 0:00:05]} 1/2-1/2

[Event "4th EFE Metz Festival-WIM"]
[Site "Metz"]
[Date "2018.07.24"]
[Round "3"]
[White "Moskalets, Svetlana"]
[Black "Schweitzer, Victoria"]
[Result "1/2-1/2"]
[ECO "B00"]
[WhiteElo "2208"]
[BlackElo "2097"]
[Annotator "NA"]
[PlyCount "75"]
[EventDate "2018.07.22"]
[EventType "tourn"]
[EventCountry "FRA"]
[SourceTitle "playchess.com"]
[Source "ChessBase"]
[SourceQuality "1"]
[TimeControl "5400+30"]

1. e4 {[%emt 0:00:00]} b6 {[%emt 0:00:09]} 2. d4 {[%emt 0:01:16]} Bb7 {[%emt 0:00:06]} 3. Bd3 {[%emt 0:03:17]} e6 {[%emt 0:00:07]} 4. Nf3 {[%emt 0:01:18]} g6 {[%emt 0:00:58]} 5. Nc3 {[%emt 0:01:26]} Bg7 {[%emt 0:00:06]} 6. Bg5 {[%emt 0:00:57]} Ne7 {[%emt 0:00:09]} 7. Qd2 {[%emt 0:01:58]} h6 {[%emt 0:00:23]} 8. Bf4 {[%emt 0:05:11]} d6 {[%emt 0:00:12]} 9. h4 {[%emt 0:01:24]} Nd7 {[%emt 0:00:42]} 10. O-O-O {[%emt 0:02:04]} Qc8 {[%emt 0:04:39]} 11. Kb1 {[%emt 0:00:53]} Ba6 {[%emt 0:00:38]} 12. Rhe1 {[%emt 0:05:29]} Bxd3 {[%emt 0:00:32]} 13. Qxd3 {[%emt 0:00:02]} Qb7 {[%emt 0:04:38]} 14. Qd2 {[%emt 0:03:56]} O-O-O {[%emt 0:00:32]} 15. Qe2 {[%emt 0:03:05]} a6 16. Bh2 {[%emt 0:01:13]} Kb8 {[%emt 0:08:48]} 17. Qe3 {[%emt 0:03:57]} b5 {[%emt 0:00:36]} 18. Nd2 {[%emt 0:06:42]} Nb6 {[%emt 0:01:01]} 19. Ne2 {[%emt 0:07:35]} Ka7 {[%emt 0:04:46]} 20. h5 {[%emt 0:06:03]} g5 {[%emt 0:03:25]} 21. f4 {[%emt 0:00:38]} g4 {[%emt 0:01:17]} 22. Bg3 {[%emt 0:06:03]} Rde8 {[%emt 0:03:07]} 23. Bh4 {[%emt 0:02:30]} Nc6 {[%emt 0:00:31]} 24. c3 {[%emt 0:01:20]} d5 {[%emt 0:01:49]} 25. e5 {[%emt 0:02:05]} Nc4 {[%emt 0:02:27]} 26. Nxc4 {[%emt 0:00:14]} bxc4 {[%emt 0:00:07]} 27. f5 {[%emt 0:02:27]} Rb8 {[%emt 0:04:14]} 28. Rd2 {[%emt 0:00:39]} Rhe8 {[%emt 0:03:39]} 29. fxe6 {[%emt 0:02:56]} fxe6 {[%emt 0:00:18]} 30. Nf4 {[%emt 0:00:25]} Bf8 {[%emt 0:00:10]} 31. Ng6 {[%emt 0:05:13]} Ba3 {[%emt 0:01:20]} 32. Ree2 {[%emt 0:00:02]} Qb5 {[%emt 0:00:55]} 33. Rc2 {[%emt 0:06:00]} Qa4 {[%emt 0:15:10]} 34. Kc1 {[%emt 0:03:57]} Bf8 {[%emt 0:00:55]} 35. Kb1 {[%emt 0:01:38]} Ba3 {[%emt 0:01:02]} 36. Kc1 {[%emt 0:00:19]} Bf8 {[%emt 0:00:16]} 37. Kb1 {[%emt 0:00:32]} Ba3 {[%emt 0:00:14]} 38. Kc1 {[%emt 0:00:22]} 1/2-1/2

[Event "4th EFE Metz Festival-WIM"]
[Site "Metz"]
[Date "2018.07.24"]
[Round "3"]
[White "Terbe, Zsuzsanna"]
[Black "Terbe, Julianna"]
[Result "1/2-1/2"]
[ECO "D14"]
[WhiteElo "2178"]
[BlackElo "2238"]
[Annotator "NA"]
[PlyCount "61"]
[EventDate "2018.07.22"]
[EventType "tourn"]
[EventCountry "FRA"]
[SourceTitle "playchess.com"]
[Source "ChessBase"]
[SourceQuality "1"]
[TimeControl "5400+30"]

1. d4 {[%emt 0:00:00]} d5 {[%emt 0:00:04]} 2. c4 {[%emt 0:00:00]} c6 {[%emt 0:00:01]} 3. cxd5 {[%emt 0:00:00]} cxd5 {[%emt 0:00:05]} 4. Nc3 {[%emt 0:00:00]} Nf6 {[%emt 0:00:07]} 5. Nf3 {[%emt 0:00:00]} Nc6 {[%emt 0:00:04]} 6. Bf4 {[%emt 0:00:00]} Bf5 {[%emt 0:00:04]} 7. e3 {[%emt 0:00:00]} e6 {[%emt 0:00:03]} 8. Bd3 {[%emt 0:00:00]} Bxd3 {[%emt 0:00:04]} 9. Qxd3 {[%emt 0:00:00]} Bd6 {[%emt 0:00:04]} 10. Bxd6 {[%emt 0:00:02]} Qxd6 {[%emt 0:00:06]} 11. O-O {[%emt 0:00:03]} O-O {[%emt 0:00:06]} 12. Rfc1 {[%emt 0:00:04]} Rfc8 {[%emt 0:00:03]} 13. h3 {[%emt 0:00:03]} h6 {[%emt 0:00:05]} 14. a3 {[%emt 0:00:02]} a6 {[%emt 0:00:03]} 15. Rc2 {[%emt 0:00:02]} Rc7 {[%emt 0:00:04]} 16. Rac1 {[%emt 0:00:03]} Rac8 {[%emt 0:00:03]} 17. Ne2 {[%emt 0:00:17]} Ne7 {[%emt 0:00:29]} 18. Rxc7 {[%emt 0:00:16]} Rxc7 {[%emt 0:00:03]} 19. Rxc7 {[%emt 0:00:05]} Qxc7 {[%emt 0:00:04]} 20. Qc3 {[%emt 0:00:04]} Qxc3 {[%emt 0:00:05]} 21. Nxc3 {[%emt 0:00:02]} Nc6 {[%emt 0:00:07]} 22. Kf1 {[%emt 0:00:02]} Kf8 {[%emt 0:00:04]} 23. Ke2 {[%emt 0:00:03]} Ke7 {[%emt 0:00:03]} 24. Kd3 {[%emt 0:00:04]} Kd6 {[%emt 0:00:03]} 25. Nd2 {[%emt 0:00:08]} Nd7 {[%emt 0:00:04]} 26. Nb3 {[%emt 0:00:03]} Nb6 {[%emt 0:00:15]} 27. Nc5 {[%emt 0:00:05]} Kc7 {[%emt 0:00:04]} 28. N3a4 {[%emt 0:00:05]} Nxa4 {[%emt 0:00:04]} 29. Nxa4 {[%emt 0:00:05]} Na5 {[%emt 0:00:09]} 30. Nc5 {[%emt 0:00:09]} Nc4 {[%emt 0:00:03]} 31. Kc2 {[%emt 0:00:04]} 1/2-1/2

[Event "4th EFE Metz Festival-WIM"]
[Site "Metz"]
[Date "2018.07.24"]
[Round "3"]
[White "Thomas, Anysia"]
[Black "Afraoui, Anaelle"]
[Result "0-1"]
[ECO "E71"]
[WhiteElo "2156"]
[BlackElo "2056"]
[Annotator "NA"]
[PlyCount "76"]
[EventDate "2018.07.22"]
[EventType "tourn"]
[EventCountry "FRA"]
[SourceTitle "playchess.com"]
[Source "ChessBase"]
[SourceQuality "1"]
[TimeControl "5400+30"]

1. d4 {[%emt 0:00:00]} Nf6 {[%emt 0:00:10]} 2. c4 {[%emt 0:00:00]} g6 {[%emt 0:00:07]} 3. Nc3 {[%emt 0:00:00]} Bg7 {[%emt 0:00:06]} 4. e4 {[%emt 0:00:00]} d6 {[%emt 0:00:11]} 5. h3 {[%emt 0:00:00]} O-O {[%emt 0:00:15]} 6. Nf3 {[%emt 0:00:08]} e5 {[%emt 0:00:40]} 7. dxe5 {[%emt 0:00:05]} dxe5 {[%emt 0:00:12]} 8. Be3 {[%emt 0:00:04]} Qe7 {[%emt 0:06:13]} 9. Be2 {[%emt 0:00:43]} c6 {[%emt 0:02:48]} 10. O-O {[%emt 0:00:26]} Na6 {[%emt 0:01:53]} 11. a3 {[%emt 0:01:26]} Nc5 {[%emt 0:03:03]} 12. Qc2 {[%emt 0:01:24]} Nh5 {[%emt 0:04:56]} 13. Rfd1 {[%emt 0:03:45]} Nf4 {[%emt 0:05:36]} 14. Bf1 {[%emt 0:00:37]} f5 {[%emt 0:01:38]} 15. b4 {[%emt 0:11:12]} Nce6 {[%emt 0:08:43]} 16. exf5 {[%emt 0:09:30]} gxf5 {[%emt 0:07:42]} 17. c5 {[%emt 0:00:58]} Kh8 {[%emt 0:03:43]} 18. Rd6 {[%emt 0:06:06]} e4 {[%emt 0:03:26]} 19. Ne1 {[%emt 0:31:39]} Nd5 {[%emt 0:15:14]} 20. Nxd5 {[%emt 0:02:14]} cxd5 {[%emt 0:03:47]} 21. Rd1 {[%emt 0:00:38]} d4 {[%emt 0:02:16]} 22. Bc1 {[%emt 0:02:29]} Bd7 {[%emt 0:09:38]} 23. Bc4 {[%emt 0:05:59]} d3 {[%emt 0:01:44]} 24. Nxd3 {[%emt 0:13:17]} Nd4 {[%emt 0:07:18]} 25. Qd2 {[%emt 0:04:23]} exd3 {[%emt 0:01:36]} 26. Qxd3 {[%emt 0:00:18]} Ba4 {[%emt 0:00:26]} 27. Rxd4 {[%emt 0:01:00]} Bxd1 {[%emt 0:00:36]} 28. Qxd1 {[%emt 0:00:12]} Rae8 {[%emt 0:04:25]} 29. Bf1 {[%emt 0:05:08]} Bxd4 {[%emt 0:05:02]} 30. Qxd4+ {[%emt 0:00:03]} Qg7 {[%emt 0:00:07]} 31. Bb2 {[%emt 0:00:48]} Qxd4 {[%emt 0:00:18]} 32. Bxd4+ {[%emt 0:00:03]} Kg8 {[%emt 0:00:07]} 33. Bc4+ {[%emt 0:00:15]} Rf7 {[%emt 0:00:06]} 34. Kf1 {[%emt 0:01:37]} Kf8 {[%emt 0:00:14]} 35. Bxf7 {[%emt 0:00:14]} Kxf7 {[%emt 0:00:03]} 36. Be3 {[%emt 0:00:19]} Re4 {[%emt 0:00:37]} 37. Ke2 {[%emt 0:00:27]} f4 {[%emt 0:00:36]} 38. Kd3 {[%emt 0:00:32]} fxe3 {[%emt 0:00:05]} 0-1

[Event "4th EFE Metz Festival-WIM"]
[Site "Metz"]
[Date "2018.07.24"]
[Round "3"]
[White "Broly, Mathilde"]
[Black "Soubirou, Oriane"]
[Result "1-0"]
[ECO "C00"]
[WhiteElo "2149"]
[BlackElo "2105"]
[Annotator "NA"]
[PlyCount "81"]
[EventDate "2018.07.22"]
[EventType "tourn"]
[EventCountry "FRA"]
[SourceTitle "playchess.com"]
[Source "ChessBase"]
[SourceQuality "1"]
[TimeControl "5400+30"]

1. e4 {[%emt 0:00:00]} a6 {[%emt 0:00:55]} 2. d4 {[%emt 0:01:18]} e6 {[%emt 0:01:53]} 3. Nf3 {[%emt 0:01:24]} b5 {[%emt 0:00:07]} 4. Bd3 {[%emt 0:00:21]} Bb7 {[%emt 0:00:07]} 5. Qe2 {[%emt 0:03:19]} Nf6 {[%emt 0:04:35]} 6. Nbd2 {[%emt 0:02:00]} d5 {[%emt 0:01:04]} 7. e5 {[%emt 0:00:07]} Nfd7 {[%emt 0:00:15]} 8. O-O {[%emt 0:02:11]} c5 {[%emt 0:00:16]} 9. c3 {[%emt 0:00:07]} Nc6 {[%emt 0:00:16]} 10. Re1 {[%emt 0:13:22]} h6 {[%emt 0:02:12]} 11. Nf1 {[%emt 0:05:09]} c4 {[%emt 0:06:20]} 12. Bc2 {[%emt 0:04:25]} Qc7 {[%emt 0:00:10]} 13. h4 {[%emt 0:04:18]} Be7 {[%emt 0:01:28]} 14. h5 {[%emt 0:06:40]} O-O-O {[%emt 0:00:31]} 15. Ne3 {[%emt 0:03:50]} Rdf8 {[%emt 0:09:02]} 16. Bd2 {[%emt 0:14:28]} Rhg8 {[%emt 0:11:19]} 17. b3 {[%emt 0:06:08]} Nb6 {[%emt 0:01:42]} 18. a4 {[%emt 0:02:09]} f5 {[%emt 0:05:56]} 19. axb5 {[%emt 0:05:39]} axb5 {[%emt 0:00:16]} 20. bxc4 {[%emt 0:00:12]} bxc4 {[%emt 0:06:18]} 21. g3 {[%emt 0:01:05]} g6 {[%emt 0:07:10]} 22. hxg6 {[%emt 0:01:34]} Rxg6 {[%emt 0:00:07]} 23. Ng2 {[%emt 0:00:08]} Kd7 {[%emt 0:03:54]} 24. Nfh4 {[%emt 0:02:18]} Rgg8 {[%emt 0:05:07]} 25. Bxh6 {[%emt 0:00:14]} Bg5 {[%emt 0:11:43]} 26. Bxf8 {[%emt 0:01:30]} Rxf8 {[%emt 0:00:01]} 27. f4 {[%emt 0:03:33]} Bd8 {[%emt 0:01:29]} 28. Qh5 {[%emt 0:00:59]} Kc8 {[%emt 0:00:24]} 29. Kf2 {[%emt 0:03:10]} Qg7 {[%emt 0:02:24]} 30. Qg6 {[%emt 0:02:57]} Qxg6 {[%emt 0:04:02]} 31. Nxg6 {[%emt 0:00:06]} Rg8 {[%emt 0:00:11]} 32. N6h4 {[%emt 0:00:15]} Nd7 {[%emt 0:01:16]} 33. Nxf5 {[%emt 0:03:20]} exf5 {[%emt 0:02:03]} 34. Bxf5 {[%emt 0:00:07]} Ba5 {[%emt 0:01:35]} 35. Ra3 {[%emt 0:00:42]} Bb6 {[%emt 0:04:10]} 36. Ne3 {[%emt 0:01:41]} Na5 {[%emt 0:02:37]} 37. Be6 {[%emt 0:00:43]} Rh8 {[%emt 0:01:09]} 38. Kg2 {[%emt 0:01:17]} Nb3 {[%emt 0:01:32]} 39. Bxd5 {[%emt 0:00:43]} Bxd5+ {[%emt 0:00:27]} 40. Nxd5 {[%emt 0:00:06]} Ba5 {[%emt 0:00:32]} 41. Ra4 {[%emt 0:00:15]} 1-0

[Event "4th EFE Metz Festival-WIM"]
[Site "Metz"]
[Date "2018.07.25"]
[Round "4"]
[White "Moskalets, Svetlana"]
[Black "Zozulia, Anna"]
[Result "1/2-1/2"]
[ECO "B04"]
[WhiteElo "2208"]
[BlackElo "2300"]
[Annotator "NA"]
[PlyCount "42"]
[EventDate "2018.07.22"]
[EventType "tourn"]
[EventCountry "FRA"]
[SourceTitle "playchess.com"]
[Source "ChessBase"]
[SourceQuality "1"]
[TimeControl "5400+30"]

1. e4 {[%emt 0:08:29]} Nf6 {[%emt 0:00:13]} 2. e5 {[%emt 0:00:31]} Nd5 {[%emt 0:00:39]} 3. d4 {[%emt 0:00:52]} d6 {[%emt 0:00:16]} 4. Nf3 {[%emt 0:00:24]} g6 {[%emt 0:02:00]} 5. exd6 {[%emt 0:01:47]} cxd6 {[%emt 0:02:38]} 6. Bc4 {[%emt 0:00:51]} Nb6 {[%emt 0:01:34]} 7. Bb3 {[%emt 0:01:11]} Bg7 {[%emt 0:02:52]} 8. O-O {[%emt 0:02:43]} Nc6 {[%emt 0:02:48]} 9. c3 {[%emt 0:00:17]} O-O {[%emt 0:02:16]} 10. Bg5 {[%emt 0:00:39]} Qc7 {[%emt 0:03:36]} 11. Qd2 {[%emt 0:01:53]} Bf5 {[%emt 0:03:03]} 12. Bh6 {[%emt 0:02:39]} Rfd8 {[%emt 0:02:36]} 13. Bxg7 {[%emt 0:00:13]} Kxg7 {[%emt 0:00:05]} 14. Qe3 {[%emt 0:00:26]} Na5 {[%emt 0:01:24]} 15. Nbd2 {[%emt 0:00:21]} Nxb3 {[%emt 0:00:55]} 16. axb3 {[%emt 0:00:09]} Nd5 {[%emt 0:00:23]} 17. Qe2 {[%emt 0:00:24]} Nf4 {[%emt 0:00:44]} 18. Qe3 {[%emt 0:00:10]} Nd5 {[%emt 0:00:23]} 19. Qe2 {[%emt 0:00:12]} Nf4 {[%emt 0:00:22]} 20. Qe3 {[%emt 0:00:12]} Nd5 {[%emt 0:00:15]} 21. Qe2 {[%emt 0:00:14]} Nf4 {[%emt 0:00:16]} 1/2-1/2